Cogmind - Beta 10 X1 @@@ ROGUE MODE // 2020.06.02 @ 17:10:15 Player: Decinym Result: Destroyed by DAS Turret with DAS Cannon Performance ------------- Evolutions (1) 500 Regions Visited (5) 1000 Robots Destroyed (60) 300 Value Destroyed (920) 920 Prototype IDs (25) 500 Alien Tech Used (0) 0 Bonus (-331) -331 TOTAL SCORE: 2889 Bonus ------- High Alert Combat Kills 73 Follower Combat Kills 200 Aligned with FarCom 300 Friendly Fire -904 Cogmind --------- Core Integrity 0/400 Matter 195/300 Energy 69/100 System Corruption 2% Temperature Cool (0) Movement Flying (172) Ox2 Location -9/Exiles Parts ------- > --- POWER (1) -------- (None) > --- PROPULSION (2) --- Improved Flight Unit Improved Flight Unit > --- UTILITY (4) ------ Improved Heat Sink Large Storage Unit Large Storage Unit > --- WEAPON (2) ------- Mini Grenade Launcher > --- INVENTORY (16) --- Light Nuclear Core Aluminum Leg Aluminum Leg Improved Flight Unit Improved Flight Unit Improved Heat Sink Improved Heat Sink Medium Storage Unit 0b10 Alert Chip Particle Gun AWS/Thermal Makeshift Sword Peak State ------------ > --- POWER ------------ Ion Engine > --- PROPULSION ------- Aluminum Leg Flexi-carbon Leg > --- UTILITY ---------- Improved Heat Sink Large Storage Unit Large Storage Unit Improved Light Armor Plating > --- WEAPON ----------- Advanced Beam Cannon Advanced Beam Cannon > --- INVENTORY -------- Aluminum Leg Aluminum Leg Aluminum Leg Aluminum Leg Combat Airjet Improved Flight Unit Improved Flight Unit Improved Flight Unit Improved Flight Unit Improved Heat Sink Medium Storage Unit Particle Gun Advanced Beam Cannon Bore Cannon Mini Grenade Launcher Makeshift Sword [Rating: 25] Favorites ----------- Power Ion Engine Engine Ion Engine Propulsion Aluminum Leg Leg Aluminum Leg Hover Unit Combat Airjet Flight Unit Improved Flight Unit Utility Large Storage Unit Device Improved Heat Sink Storage Large Storage Unit Protection Improved Light Armor Plating Weapon Advanced Beam Cannon Energy Gun EM Pulse Gun Energy Cannon Advanced Beam Cannon Ballistic Cannon Bore Cannon Launcher Mini Grenade Launcher Slashing Weapon Katana Build | -11 -10 -10 -9 -9 -9 ------- Run | Scr Mat Min Mat Min Exi Slots Evolved 2 | . . . 2 . . Power . | . . . . . . Propulsion . | . . . . . . Utility 2 | . . . 2 . . Weapon . | . . . . . . Parts Attached 37 | . . 5 16 9 7 Power 4 | . . . 1 3 . Engine 4 | . . . 1 3 . Core . | . . . . . . Reactor . | . . . . . . Propulsion 10 | . . 2 4 2 2 Treads . | . . . . . . Leg 6 | . . 1 3 2 . Wheel . | . . . . . . Hover 1 | . . 1 . . . Flight 3 | . . . 1 . 2 Utility 4 | . . 1 3 . . Device 1 | . . . 1 . . Storage 2 | . . . 2 . . Processor . | . . . . . . Hackware . | . . . . . . Protection 1 | . . 1 . . . Artifact . | . . . . . . Weapon 19 | . . 2 8 4 5 Energy Gun 1 | . . 1 . . . Energy Cannon 10 | . . . 6 2 2 Ballistic Gun . | . . . . . . Ballistic Cannon 1 | . . 1 . . . Launcher 5 | . . . 2 2 1 Special Weapon . | . . . . . . Impact Weapon . | . . . . . . Slashing Weapon 2 | . . . . . 2 Piercing Weapon . | . . . . . . Special Melee Weapon . | . . . . . . Unidentified Prototypes 2 | . . . 2 . . Parts Lost 10 | . . 1 1 3 5 Power 3 | . . . 1 1 1 Propulsion 2 | . . . . . 2 Utility 1 | . . . . 1 . Weapon 4 | . . 1 . 1 2 Highest Loss Streak 5 | . . 1 1 2 5 Average Slot Usage (%) 86 | . 85 77 87 93 86 Engine 11 | . 14 14 10 10 10 Leg 22 | . 28 25 19 22 21 Hover 1 | . . 2 2 . . Device 6 | . . . 5 11 11 Storage 19 | . 14 14 19 22 22 Protection 4 | . . 2 11 5 . Energy Gun 2 | . 28 6 . . . Energy Cannon 9 | . . . 13 16 9 Ballistic Cannon 3 | . . 11 4 . . Launcher 2 | . . . . 5 5 Slashing Weapon 1 | . . . . . 5 Naked Turns . | . . . . . . Heaviest Build 53 | 12 12 24 53 51 44 Greatest Support 30 | 20 20 30 30 30 25 Greatest Overweight (x) 4 | . . 1 4 2 2 Average Overweight (x) . | . . . . 1 1 Largest Inventory Capacity 18 | . 6 6 18 16 16 Average Capacity 12 | . 6 6 13 16 16 Most Carried 16 | . 6 6 16 16 16 Average Carried 11 | . 6 5 9 15 14 Final Capacity 16 | 6 6 6 16 16 16 Final Carried 16 | 6 6 6 15 16 13 Class Distribution -------------------- 74% | Scavenger-Mutant 25% | Mutant Dominant Class ---------------- Mutant | -10/Materials Mutant | -10/Mines Scavenger-Mutant | -9/Materials Scavenger-Mutant | -9/Mines Scavenger-Mutant | -9/Exiles Resources | -11 -10 -10 -9 -9 -9 ----------- Run | Scr Mat Min Mat Min Exi Matter Collected 973 | 200 . 180 428 115 50 Remotely . | . . . . . . Salvage Created 1497 | . . 188 735 561 13 Parts 91 | . . 7 45 39 . Haulers Intercepted 3 | . . . 3 . . Recyclers Shooed 2 | . . . 1 1 . Parts Field Recycled . | . . . . . . Retrieved Matter . | . . . . . . Parts Self-Destructed . | . . . . . . Prevented . | . . . . . . Kills | -11 -10 -10 -9 -9 -9 ------- Run | Scr Mat Min Mat Min Exi Combat Hostiles Destroyed 41 | . . 9 10 20 2 Melee 1 | . . . . . 1 Guns 3 | . . 3 . . . Cannons 19 | . . 6 6 7 . AOE 18 | . . . 4 13 1 Classes Destroyed 11 | . . 4 5 2 . Worker 3 | . . 1 1 1 . Builder 2 | . . . 2 . . Hauler 3 | . . . 3 . . Recycler 5 | . . . 2 3 . Swarmer 20 | . . 3 3 14 . Grunt 13 | . . 3 6 4 . Brawler 1 | . . . . 1 . Duelist 1 | . . . . 1 . Sentry 2 | . . . 2 . . Zionite 1 | . . . 1 . . Assembled 8 | . . 3 . . 5 Best Kill Streak 5 | . . 3 5 5 1 Combat Bots Only 4 | . . 3 4 4 1 Max Kills in Single Turn 4 | . . 1 3 3 4 Gunslinging . | . . . . . . Exploded 3 | . . . 3 3 1 Melee 1 | . . . . . 1 Uniques/NPCs Destroyed 2 | . . . . . 2 EX-HEX (-9/Exiles) 8R-AWN (-9/Exiles) Combat | -11 -10 -10 -9 -9 -9 -------- Run | Scr Mat Min Mat Min Exi Damage Taken 1998 | . . 364 311 398 925 Core 473 | . . 33 54 38 348 Absorbed by Shields . | . . . . . . Core Remaining (%) 93 | 100 . 86 . . . Volleys Fired 136 | . . 45 48 37 6 Largest 2 | . . 2 2 2 1 Hottest 136 | . . 97 136 136 68 Shots Fired 204 | . . 61 73 64 6 Gun 35 | . . 35 . . . Cannon 151 | . . 26 70 54 1 Launcher 18 | . . . 3 10 5 Special . | . . . . . . Kinetic 54 | . . 26 28 . . Thermal 111 | . . 14 42 54 1 Explosive 18 | . . . 3 10 5 Electromagnetic 21 | . . 21 . . . Robot Hit Streak 9 | . . 4 9 5 1 Robot Miss Streak 6 | . . 4 3 6 1 Penetration Max . | . . . . . . Secondary Targets . | . . . . . . Shots Hit Robots 104 | . . 30 41 31 2 Core Hits 79 | . . 12 23 30 14 Critical Hits 22 | . . 7 12 3 . Critical Kills 8 | . . 5 3 . . Critical Parts Destroyed 14 | . . 2 9 3 . Melee Attacks 2 | . . . . . 2 Impact . | . . . . . . Slashing 2 | . . . . . 2 Piercing . | . . . . . . Sneak Attacks . | . . . . . . Combat Hostiles . | . . . . . . Follow-up Attacks . | . . . . . . Damage Inflicted 3703 | . . 488 1548 1320 347 Guns 169 | . . 169 . . . Cannons 1940 | . . 319 1088 513 20 Explosions 1560 | . . . 460 807 293 Melee 34 | . . . . . 34 Ramming . | . . . . . . Kinetic 770 | . . 319 451 . . Thermal 1213 | . . 43 637 513 20 Explosive 1560 | . . . 460 807 293 Electromagnetic 126 | . . 126 . . . Impact . | . . . . . . Slashing 34 | . . . . . 34 Piercing . | . . . . . . Highest Corruption 2 | . . . 2 2 2 Average Corruption 2 | . . . 2 2 2 Corruption Purged . | . . . . . . Effects 17 | . . . 3 7 7 Message Errors 7 | . . . 2 4 1 Heat Flow Errors 1 | . . . . 1 . Energy Discharges 4 | . . . . 1 3 Data Loss (minor) 4 | . . . 1 . 3 Targeting Errors 1 | . . . . 1 . Overload Shots . | . . . . . . Overflow Damage 28 | . . 6 5 17 . Projectiles 23 | . . 6 . 17 . Explosions 5 | . . . 5 . . Melee . | . . . . . . Knockbacks 7 | . . 3 4 . . Impact . | . . . . . . Kinetic 6 | . . 3 3 . . Secondary 1 | . . . 1 . . Self-Inflicted Damage 113 | . . . 32 81 . Shots 4 | . . . 2 2 . Rammed . | . . . . . . Targets Rammed . | . . . . . . Kicked . | . . . . . . Crushed . | . . . . . . Highest Temperature 360 | . . 294 360 198 . Average Temperature 93 | . . 115 94 65 . Received Heat Transfer 314 | . . 114 123 57 20 Effects 1 | . . 1 . . . Energy Bleed 1 | . . 1 . . . Siege Activations . | . . . . . . Robots Corrupted . | . . . . . . Combat Hostiles . | . . . . . . Parts Fried . | . . . . . . Impact Corruptions . | . . . . . . Robots Melted . | . . . . . . Combat Hostiles . | . . . . . . Parts Melted . | . . . . . . Heat Transferred 2209 | . . 100 1147 925 37 Parts Sabotaged . | . . . . . . Parts Stolen . | . . . . . . Parts Stripped . | . . . . . . Power Chain Reactions . | . . . . . . Missiles Intercepted . | . . . . . . Alert | -11 -10 -10 -9 -9 -9 ------- Run | Scr Mat Min Mat Min Exi Peak Influence 515 | . . 113 503 515 . Average Influence 229 | . . 36 328 347 . Maximum Alert Level 2 | . . . 2 2 . Low Security (%) 44 | . 100 100 18 9 . Level 1 30 | . . . 37 54 . Level 2 25 | . . . 44 36 . Level 3 . | . . . . . . Level 4 . | . . . . . . Level 5 . | . . . . . . High Security . | . . . . . . Max Security . | . . . . . . Squads Dispatched 3 | . 1 . 2 . . Investigation 2 | . 1 . 1 . . Extermination . | . . . . . . Reinforcement 1 | . . . 1 . . Assault . | . . . . . . Garrison . | . . . . . . Intercept . | . . . . . . Construction Impeded . | . . . . . . Haulers Reinforced . | . . . . . . Stealth | -11 -10 -10 -9 -9 -9 --------- Run | Scr Mat Min Mat Min Exi Distress Signals 3 | . 2 . 1 . . Communications Jammed . | . . . . . . Distress Signals . | . . . . . . Times Spotted 80 | . 3 17 20 23 17 Peak Tracking Total 7 | . 6 7 6 6 5 Tactical Retreats 4 | . . 1 . 1 2 Traps | -11 -10 -10 -9 -9 -9 ------- Run | Scr Mat Min Mat Min Exi Traps Triggered 2 | . 1 . 1 . . Indirectly . | . . . . . . Trap Hack Attempts . | . . . . . . Triggered . | . . . . . . Disarmed . | . . . . . . Reprogrammed . | . . . . . . Reused . | . . . . . . Traps Extracted . | . . . . . . Installed . | . . . . . . Triggered . | . . . . . . Machines | -11 -10 -10 -9 -9 -9 ---------- Run | Scr Mat Min Mat Min Exi Machines Disabled 10 | . . 1 2 2 5 Max in Single Turn 2 | . . 1 2 1 2 Machines Sabotaged . | . . . . . . Garrisons Compromised . | . . . . . . Overloaded Fab Kills . | . . . . . . Fab Network Shutdowns . | . . . . . . Hacking | -11 -10 -10 -9 -9 -9 --------- Run | Scr Mat Min Mat Min Exi Machines Accessed 2 | . 1 . . . 1 Terminals 1 | . 1 . . . . Fabricators . | . . . . . . Repair Stations . | . . . . . . Recycling Units . | . . . . . . Scanalyzers . | . . . . . . Garrison Access . | . . . . . . Total Hacks 3 | . 2 . . . 1 Successful 1 | . . . . . 1 Failed 2 | . 2 . . . . Catastrophic . | . . . . . . Database Lockouts . | . . . . . . Manual 3 | . 2 . . . 1 Terminals 2 | . 2 . . . . Fabricators . | . . . . . . Repair Stations . | . . . . . . Recycling Units . | . . . . . . Scanalyzers . | . . . . . . Garrison Access . | . . . . . . Terminal Hacks 1 | . . . . . 1 EX-Prototype ID Bank 1 | . . . . . 1 Fabricator Hacks . | . . . . . . Repair Station Hacks . | . . . . . . Recycling Unit Hacks . | . . . . . . Scanalyzer . | . . . . . . Garrison Access Hacks . | . . . . . . Unauthorized Hacks . | . . . . . . Terminals . | . . . . . . Fabricators . | . . . . . . Repair Stations . | . . . . . . Recycling Units . | . . . . . . Scanalyzers . | . . . . . . Garrison Access . | . . . . . . Data Cores Recovered . | . . . . . . Used . | . . . . . . Hacking Detections 1 | . 1 . . . . Full Trace Events . | . . . . . . Feedback Events . | . . . . . . Feedback Blocked . | . . . . . . Robot Schematics Acquired . | . . . . . . Robots Built . | . . . . . . Matter . | . . . . . . Time . | . . . . . . Total Robot Build Rating . | . . . . . . Part Schematics Acquired . | . . . . . . Parts Built . | . . . . . . Matter . | . . . . . . Time . | . . . . . . Total Part Build Rating . | . . . . . . Parts Repaired . | . . . . . . Time . | . . . . . . Parts Recycled . | . . . . . . Recycled Matter . | . . . . . . Retrieved Matter . | . . . . . . Retrieved Components . | . . . . . . Parts Scanalyzed . | . . . . . . Part Schematics Acquired . | . . . . . . Parts Damaged . | . . . . . . Bothacking | -11 -10 -10 -9 -9 -9 ------------ Run | Scr Mat Min Mat Min Exi Used RIF Installer . | . . . . . . Robots Hacked . | . . . . . . Non-combat . | . . . . . . Combat . | . . . . . . Robot Hacks Applied . | . . . . . . Relay Couplers Released . | . . . . . . Robots Rewired . | . . . . . . Allies Hacked . | . . . . . . Hacks Repelled . | . . . . . . Allies | -11 -10 -10 -9 -9 -9 -------- Run | Scr Mat Min Mat Min Exi Total Allies 5 | . . 5 . . . Largest Group 5 | . . 5 5 1 . Highest-Rated Group 85 | . . 85 85 31 . Highest-Rated Ally 31 | . . 31 31 31 . Total Orders . | . . . . . . Ally Attacks 97 | . . 5 60 6 26 Total Damage 2297 | . . 39 646 106 1506 Kills 18 | . . 1 13 1 3 Allies Corrupted . | . . . . . . Allies Melted . | . . . . . . Turrets Deployed 3 | . . . . . 3 Intel | -11 -10 -10 -9 -9 -9 ------- Run | Scr Mat Min Mat Min Exi Robot Analysis Total . | . . . . . . Derelict Logs Recovered 2 | . . 1 . 1 . Drone Launches . | . . . . . . Drone Recoveries . | . . . . . . Exploration | -11 -10 -10 -9 -9 -9 ------------- Run | Scr Mat Min Mat Min Exi Turns Passed 2499 | . 57 618 550 671 603 Spaces Moved 1483 | 1 48 432 284 344 374 Core . | . . . . . . Treads . | . . . . . . Legs 1316 | 1 48 349 203 344 371 Wheels . | . . . . . . Hover 164 | . . 83 81 . . Flight 3 | . . . . . 3 Fastest Speed 90 | 120 120 90 90 150 150 Average Speed 137 | 120 120 115 132 156 150 Slowest Speed 240 | 120 120 160 240 180 180 Overloaded Moves . | . . . . . . Propulsion Burnouts . | . . . . . . Robots Hopped 1 | . . . . . 1 Cave-ins Triggered . | . . . . . . Exploration Rate (%) 43 | 2 19 82 34 68 53 Regions Visited 5 Branch Regions 3 Pre-discovered Areas 1 | . . 1 . . . Known Exits Taken 1 | . . . 1 . . Unknown Exits Taken 4 | 1 1 1 . 1 . Scrap Searched 1 | . . . . 1 . Spaces Dug . | . . . . . . Terrain Destroyed 199 | . . 13 80 89 17 Melee . | . . . . . . Projectile 30 | . . 13 17 . . AOE 169 | . . . 63 89 17 Actions | -11 -10 -10 -9 -9 -9 --------- Run | Scr Mat Min Mat Min Exi Total 1746 | . 47 492 383 414 410 Wait 26 | . . . 13 13 . Move 1476 | . 47 431 283 343 372 Hop 1 | . . . . . 1 Pick Up 31 | . . 3 13 5 10 Fast Attach 13 | . . 4 7 2 . Attach 10 | . . . 4 1 5 Detach 4 | . . 1 2 . 1 Swap 14 | . . 1 5 6 2 Drop 33 | . . 7 8 7 11 Fire 136 | . . 45 48 37 6 Melee 2 | . . . . . 2 Ram . | . . . . . . Kick . | . . . . . . Crush . | . . . . . . Escape Stasis . | . . . . . . Rewire . | . . . . . . Trap . | . . . . . . Miscellaneous . | . . . . . . Route ------- -11/Scrapyard -10/Materials -10/Mines -9/Materials (discovered 3 exits: [*Mat] / *Min x2) -9/Mines (discovered 2 exits: [*Mat] / *Exi) -9/Exiles History --------- Turn | Location | Event 1 | -11/Scrapyard | Discovered new exit (range 0) 1 | -11/Scrapyard | Entered Materials 48 | -10/Materials | Discovered new exit (range 8) 58 | -10/Materials | Entered Mines 59 | -10/Mines | Learned location of Storage (-8) 87 | -10/Mines | Assembled infested the area 92 | -10/Mines | Assisted by a Guerilla fighting off Assembled 310 | -10/Mines | Build established: Mutant 502 | -10/Mines | Assisted by bots powering up and referring to "LRC-V3" 639 | -10/Mines | Discovered new exit (range 8) 676 | -10/Mines | Entered Materials 676 | -9/Materials | Accompanied by 5 allies 676 | -9/Materials | Evolved 2 slots: Utility x2 677 | -9/Materials | Identified exit to Mines 681 | -9/Materials | Led the pair of lost Derelicts to an unsafe place 873 | -9/Materials | Build established: Scavenger-Mutant 934 | -9/Materials | Discovered new exit (range 16) 1226 | -9/Materials | Entered Mines 1226 | -9/Mines | Accompanied by 1 ally 1367 | -9/Mines | Learned location of 1 exit from Materials 1501 | -9/Mines | Discovered new exit (range 10) 1891 | -9/Mines | Deemed a non-threat by the Exiles lab entrance 1891 | -9/Mines | Discovered new exit (range 5) 1897 | -9/Mines | Entered Exiles 1935 | -9/Exiles | Met 8R-AWN 1957 | -9/Exiles | Met EX-HEX 2001 | -9/Exiles | Met EX-BIN 2019 | -9/Exiles | Aligned with FarCom system 2020 | -9/Exiles | Given EX-Vault access code 2058 | -9/Exiles | Opened EX-Vault 2068 | -9/Exiles | Found Deploy-a-Sentry 2070 | -9/Exiles | Found Deploy-a-Sentry 2073 | -9/Exiles | Found Deploy-a-Sentry 2102 | -9/Exiles | Warned to stay clear of 0b10 Research branches 2161 | -9/Exiles | DAS Turret deployed 2166 | -9/Exiles | DAS Turret deployed 2195 | -9/Exiles | DAS Turret deployed 2205 | -9/Exiles | Attacked by the Exiles 2210 | -9/Exiles | Allies destroyed EX-HEX 2228 | -9/Exiles | Destroyed 8R-AWN 2348 | -9/Exiles | Found AWS/Thermal 2363 | -9/Exiles | Found 0b10 Alert Chip 2489 | -9/Exiles | Core integrity fell below 50% 2493 | -9/Exiles | Core integrity fell below 20% 2500 | -9/Exiles | Destroyed by DAS Turret with DAS Cannon Last Messages --------------- 02251_ The unstable cave ceiling collapses. 02266_ System corrupted: Energy discharge (-33). 02328_ Acquired Imp. Flight Unit. 02347_ Dropped Aluminum Leg. 02348_ Acquired AWS/Thermal. 02359_ Dropped Melee Analysis Suite. 02360_ Dropped Katana. 02363_ Acquired 0b10 Alert Chip. 02369_ System corrupted: Component data lost. 02372_ Acquired Aluminum Leg. 02414_ The unstable cave ceiling collapses. 02443_ System corrupted: Energy discharge (-47). 02474_ Lgt. Ion Engine destroyed. 02474_ Adv. Beam Cannon destroyed. 02474_ Aluminum Leg destroyed. 02478_ Adv. Beam Cannon destroyed. 02478_ Knocked back. 02486_ Carbon-fiber Leg destroyed. 02486_ Knocked back. 02499_ Machine disabled. Map ----- +----------------------------------------------------+ | ????????????????????????????????# """#? | | ????????????????????????????????#" "X" """?? | | ????????????????????????????????#" """ #? | | ????????????????????????????????#" """""""""#? | | ???????????????????????????????##" ###########? | | ??????????????????????????????##"" #??????????? | | ????????????????????????????###"" #??????????? | | ??????????????????????????""""""" ##?????????? | | ?????????????????????????""" " "" ##???###### | | ?????????????????????????""" " #####""""" | | ???????????????????????" " " """ | | ????????????????????? "" | | ?????????????????? ?? " | | ???????????????? ? | | ?????????????? | | ?????????????? | | ?????????????" """""" | | ????????????? ######""" | | ???????????? ""#?????#####""" | | ????????????" """#??????????##""" | | ???????????? ""??????????????#"""" | | ???????????" "?????????????##"" | | ??????????? ########??####"""" | | ???????????" ##aaa####""" | | ??????????" """" | | ???????????"t @ | | ???????????"" | | ??????????# " | | ???????????" " "" | | ???????????"""" ""## ##""" " " | | ????????????" ""#### ######""" ""# | | ???????????? """"##??# #????###""""## | | ????????????"" """#???# #??????####### | | ????????????? ""##???! ????????????? | | ?????????????" """##????" ????????????? | | ?????????????""" #?????#" ???????????? | | ???????????????""" #??????#!!""!???????????? | | ???????????????? ???????#######??????????? | | ????????????????#### ?????????????????????????? | | ???????????????????## ?????????????????????????? | | ????????????????????? ??????????????????????????? | | ?????????????????????????????????????????????????? | | ?????????????????????????????????????????????????? | | ?????????????????????????????????????????????????? | | ?????????????????????????????????????????????????? | | ?????????????????????????????????????????????????? | | ?????????????????????????????????????????????????? | | ?????????????????????????????????????????????????? | | ?????????????????????????????????????????????????? | | ?????????????????????????????????????????????????? | +----------------------------------------------------+ Best States ------------- Heat Dissipation 42 Energy Generation 12 Energy Capacity 265 Matter Stores 300 Matter Capacity 300 Sight Range 16 Terrain Scan Density 10 Armor Coverage 150 Evasion (%) 47 Item Schematics ----------------- None Robot Schematics ------------------ None Fabricated ------------ Nothing Alien Tech Used ----------------- None Achievements -------------- None Challenges ------------ None Game ------ Seed MeleeInsulatedShredder Manual? 0 Play Time 00:20:25 Cumulative 300.3 hours Start 2020.06.02 @ 16:53:18 End 2020.06.02 @ 17:10:15 Sessions 1 Manual Loads 0 Difficulty Rogue Special Mode None Game No. 332 Rogue 332 Adventurer 0 Explorer 0 Win Type - Total 27 Types 16/3/2/1/2/0/3 Lore% 92 Gallery% 86 Achievement% 76 Wizard Run 0 Options --------- ASCII 0 Keyboard 0 Movement Arrows Keybinds 0 Fullscreen 2 Font 18/SmallcapsGlow Map View 76x50 Tactical HUD 1 Map Filters NONE Filters NONE Steam 1 RUN: cad104d0-1c88-46bb-8913-1d58708293ab